Cogmind - Beta 13 @@@ ROGUE MODE // 2024.05.15 @ 02:04:12 Player: CanadianCogs Result: Destroyed by Y-45 Defender with Heavy Assault Rifle Performance ------------- Evolutions (0) 0 Regions Visited (2) 400 Robots Destroyed (15) 75 Value Destroyed (332) 332 Prototype IDs (0) 0 Alien Tech Used (0) 0 Bonus (49) 49 TOTAL SCORE: 856 Bonus ------- Follower Combat Kills 49 Cogmind --------- Core Integrity 0/250 Matter 295/300 Energy 95/100 System Corruption 1% Temperature Cool (11) Movement Walking (190) Ox1 Location -10/Mines Parts ------- > --- POWER (1) -------- (None) > --- PROPULSION (2) --- Aluminum Leg > --- UTILITY (2) ------ Medium Storage Unit Improved Terrain Scanner > --- WEAPON (2) ------- Hammer > --- INVENTORY (10) --- Improved Aluminum Leg Improved Aluminum Leg Improved Aluminum Leg Improved Aluminum Leg Sensor Array Peak State ------------ > --- POWER ------------ Light Nuclear Core > --- PROPULSION ------- Aluminum Leg Aluminum Leg > --- UTILITY ---------- Sensor Array Improved Terrain Scanner > --- WEAPON ----------- Particle Gun Particle Gun > --- INVENTORY -------- Improved Aluminum Leg Improved Aluminum Leg Improved Aluminum Leg Improved Aluminum Leg Sensor Array [Rating: 13] Favorites ----------- Power Light Nuclear Core Engine Light Ion Engine Power Core Light Nuclear Core Propulsion Aluminum Leg Leg Aluminum Leg Utility Improved Terrain Scanner Device Improved Terrain Scanner Storage Medium Storage Unit Weapon Particle Gun Energy Gun Particle Gun Ballistic Gun Light Assault Rifle Special Weapon Mining Laser Impact Weapon Hammer Build | -11 -10 -10 ------- Run | Yrd Mat Min Slots Evolved . | . . . Power . | . . . Propulsion . | . . . Utility . | . . . Weapon . | . . . Parts Attached 17 | 8 4 5 Power 2 | 1 1 . Engine 1 | 1 . . Core 1 | . 1 . Reactor . | . . . Propulsion 3 | 2 . 1 Treads . | . . . Leg 3 | 2 . 1 Wheel . | . . . Hover . | . . . Flight . | . . . Utility 6 | 3 1 2 Device 5 | 3 1 1 Storage 1 | . . 1 Processor . | . . . Hackware . | . . . Protection . | . . . Artifact . | . . . Weapon 6 | 2 2 2 Energy Gun 2 | . 2 . Energy Cannon . | . . . Ballistic Gun 2 | 2 . . Ballistic Cannon . | . . . Launcher . | . . . Special Weapon 1 | . . 1 Impact Weapon 1 | . . 1 Slashing Weapon . | . . . Piercing Weapon . | . . . Special Melee Weapon . | . . . Unidentified Prototypes . | . . . Parts Lost 6 | . . 6 Power 1 | . . 1 Propulsion 1 | . . 1 Utility 2 | . . 2 Weapon 2 | . . 2 Highest Loss Streak 4 | . . 4 To Critical Strikes . | . . . Average Slot Usage (%) 91 | . 100 84 Engine 3 | . 8 . Core 7 | . 5 10 Leg 28 | . 28 28 Device 24 | . 28 21 Storage 1 | . . 1 Energy Gun 16 | . 23 12 Ballistic Gun 2 | . 4 . Special Weapon 2 | . . 5 Impact Weapon 2 | . . 4 Naked Turns . | . . . Heaviest Build 13 | 7 13 13 Greatest Support 20 | 20 20 20 Greatest Overweight (x) . | . . . Average Overweight (x) . | . . . Largest Inventory Capacity 10 | 5 5 10 Average Capacity 5 | 5 5 5 Most Carried 6 | 5 5 6 Average Carried 4 | 1 4 5 Final Capacity 10 | 5 5 10 Final Carried 5 | . 5 5 Class Distribution -------------------- 100% | Mutant Dominant Class ---------------- Mutant | -10/Materials Mutant | -10/Mines Resources | -11 -10 -10 ----------- Run | Yrd Mat Min Matter Collected 372 | 269 78 25 Remotely . | . . . Salvage Created 418 | 49 260 109 Parts 31 | 7 22 2 Haulers Intercepted . | . . . Recyclers Shooed . | . . . Parts Field Recycled . | . . . Retrieved Matter . | . . . Parts Self-Destructed . | . . . Prevented . | . . . Kills | -11 -10 -10 ------- Run | Yrd Mat Min Combat Hostiles Destroyed 14 | . 7 7 Melee 3 | . . 3 Guns 10 | . 7 3 AOE 1 | . . 1 Classes Destroyed 5 | 1 3 1 Tunneler 2 | 2 . . Watcher 3 | . 3 . Swarmer 4 | . 3 1 Grunt 6 | . 4 2 Assembled 4 | . . 4 Best Kill Streak 4 | 2 3 4 Combat Bots Only 4 | . 3 4 Max Kills in Single Turn 2 | 1 1 2 Gunslinging . | . . . Exploded 1 | . . 1 Melee 1 | . . 1 Uniques/NPCs Destroyed . | . . . Combat | -11 -10 -10 -------- Run | Yrd Mat Min Hostile Shots Fired 90 | . 22 68 Missed 33 | . 9 24 Damage Taken 739 | . 147 592 Core 250 | . 53 197 Absorbed by Shields . | . . . Core Remaining (%) 100 | 100 . . Volleys Fired 59 | 6 34 19 Largest 2 | 2 2 2 Hottest 165 | 40 130 165 Shots Fired 89 | 12 54 23 Gun 85 | 12 54 19 Cannon . | . . . Launcher . | . . . Special 4 | . . 4 Kinetic 32 | 12 20 . Thermal 57 | . 34 23 Explosive . | . . . Electromagnetic . | . . . Robot Hit Streak 5 | 5 5 4 Robot Miss Streak 5 | 1 5 4 Penetration Max . | . . . Secondary Targets . | . . . Shots Hit Robots 52 | 9 27 16 Core Hits 26 | 3 16 7 Critical Kills 1 | . . 1 Critical Parts Destroyed 1 | . . 1 Critical Strikes 2 | . . 2 Smash 2 | . . 2 Melee Attacks 8 | . . 8 Impact 8 | . . 8 Slashing . | . . . Piercing . | . . . Sneak Attacks . | . . . Combat Hostiles . | . . . Follow-up Attacks . | . . . Damage Inflicted 810 | 84 355 371 Guns 614 | 84 355 175 Cannons . | . . . Explosions . | . . . Melee 196 | . . 196 Ramming . | . . . Kinetic 164 | 84 80 . Thermal 450 | . 275 175 Explosive . | . . . Electromagnetic . | . . . Impact 196 | . . 196 Slashing . | . . . Piercing . | . . . Highest Corruption 1 | . 1 1 Average Corruption 1 | . 1 1 Corruption Purged . | . . . Corruption Blocked . | . . . Effects 1 | . . 1 Data Loss (major) 1 | . . 1 Overload Shots . | . . . Overflow Damage 33 | . . 33 Projectiles . | . . . Explosions . | . . . Melee 33 | . . 33 Knockbacks . | . . . Impact . | . . . Kinetic . | . . . Secondary . | . . . Self-Inflicted Damage . | . . . Shots . | . . . Rammed . | . . . Targets Rammed . | . . . Kicked . | . . . Crushed . | . . . Highest Temperature 397 | . 397 368 Average Temperature 160 | . 146 177 Received Heat Transfer 195 | . 54 141 Effects 3 | . 2 1 Energy Bleed 1 | . 1 . Interference 1 | . . 1 Short Circuit 1 | . 1 . Siege Activations . | . . . Robots Corrupted . | . . . Combat Hostiles . | . . . Parts Fried . | . . . Impact Corruptions 1 | . . 1 Robots Melted . | . . . Combat Hostiles . | . . . Parts Melted 3 | . 1 2 Heat Transferred 1073 | . 666 407 Parts Sabotaged . | . . . Parts Stolen . | . . . Parts Stripped . | . . . Power Chain Reactions . | . . . Alert | -11 -10 -10 ------- Run | Yrd Mat Min Peak Influence 247 | 10 247 195 Initial 48 | . 6 48 Average 94 | 2 142 70 Maximum Alert Level 1 | . 1 . Low Security (%) 92 | 100 81 100 Level 1 7 | . 18 . Level 2 . | . . . Level 3 . | . . . Level 4 . | . . . Level 5 . | . . . High Security . | . . . Max Security . | . . . Squads Dispatched 4 | . 4 . Investigation 3 | . 3 . Extermination . | . . . Reinforcement 1 | . 1 . Assault . | . . . Garrison . | . . . Intercept . | . . . Searches Triggered . | . . . Construction Impeded . | . . . Haulers Reinforced . | . . . Active Scanning Responses . | . . . Cargo Convoy Interrupts . | . . . Stealth | -11 -10 -10 --------- Run | Yrd Mat Min Distress Signals 1 | . 1 . Communications Jammed . | . . . Distress Signals . | . . . Times Spotted 27 | . 14 13 Peak Tracking Total 5 | . 4 5 Tactical Retreats . | . . . Traps | -11 -10 -10 ------- Run | Yrd Mat Min Traps Triggered . | . . . Indirectly . | . . . Trap Hack Attempts . | . . . Triggered . | . . . Disarmed . | . . . Reprogrammed . | . . . Reused . | . . . Traps Extracted . | . . . Installed 3 | . . 3 Triggered . | . . . Machines | -11 -10 -10 ---------- Run | Yrd Mat Min Machines Disabled . | . . . Max in Single Turn . | . . . Machines Repaired . | . . . Machines Dismantled . | . . . Machines Sabotaged . | . . . Overloaded Fab Kills . | . . . Hacking | -11 -10 -10 --------- Run | Yrd Mat Min Machines Accessed 6 | . 6 . Terminals 5 | . 5 . Fabricators . | . . . Repair Stations . | . . . Recycling Units 1 | . 1 . Scanalyzers . | . . . Garrison Access . | . . . Total Hacks 33 | . 33 . Successful 14 | . 14 . Failed 19 | . 19 . Catastrophic 2 | . 2 . Database Lockouts . | . . . Manual 30 | . 30 . Terminals 24 | . 24 . Fabricators . | . . . Repair Stations . | . . . Recycling Units 9 | . 9 . Scanalyzers . | . . . Garrison Access . | . . . Terminal Hacks 2 | . 2 . Robot Schematic 2 | . 2 . Fabricator Hacks . | . . . Repair Station Hacks . | . . . Recycling Unit Hacks 3 | . 3 . Process 1 | . 1 . Report Inventory 1 | . 1 . Retrieve Matter 1 | . 1 . Scanalyzer . | . . . Garrison Access Hacks . | . . . Unauthorized Hacks 9 | . 9 . Terminals 4 | . 4 . Botnet 4 | . 4 . Fabricators . | . . . Repair Stations . | . . . Recycling Units 5 | . 5 . Monitor 1 | . 1 . Reject 1 | . 1 . Recyclers 1 | . 1 . Mask 1 | . 1 . Tunnel 1 | . 1 . Scanalyzers . | . . . Garrison Access . | . . . Data Cores Recovered . | . . . Used . | . . . Hacking Detections 5 | . 5 . Full Trace Events 5 | . 5 . Feedback Events 1 | . 1 . Corruption 1 | . 1 . Feedback Blocked . | . . . Robot Schematics Acquired 2 | . 2 . Robots Built . | . . . Authchips . | . . . Time . | . . . Total Robot Build Rating . | . . . Part Schematics Acquired . | . . . Parts Built . | . . . Authchips . | . . . Time . | . . . Total Part Build Rating . | . . . Parts Repaired . | . . . Time . | . . . Parts Recycled . | . . . Recycled Matter 5 | . 5 . Retrieved Matter 5 | . 5 . Retrieved Components . | . . . Parts Scanalyzed . | . . . Part Schematics Acquired . | . . . Parts Damaged . | . . . Bothacking | -11 -10 -10 ------------ Run | Yrd Mat Min Used RIF Installer . | . . . Robots Hacked . | . . . Non-combat . | . . . Combat . | . . . Robot Hacks Applied . | . . . Relay Couplers Released . | . . . Fabnet Peak Effective % . | . . . Robots Rewired . | . . . Allies Hacked . | . . . Hacks Repelled . | . . . Allies | -11 -10 -10 -------- Run | Yrd Mat Min Total Allies 1 | . . 1 Largest Group 1 | . . 1 Highest-Rated Group 31 | . . 31 Highest-Rated Ally 31 | . . 31 Total Orders . | . . . Ally Attacks 13 | . . 13 Total Damage 210 | . . 210 Kills 3 | . . 3 Allies Corrupted . | . . . Allies Melted . | . . . Intel | -11 -10 -10 ------- Run | Yrd Mat Min Robot Analysis Total . | . . . Derelict Logs Recovered . | . . . Drone Launches . | . . . Drone Recoveries . | . . . Exploration | -11 -10 -10 ------------- Run | Yrd Mat Min Turns Passed 1266 | 98 514 654 Spaces Moved 784 | 83 288 413 Core 58 | 58 . . Treads . | . . . Legs 726 | 25 288 413 Wheels . | . . . Hover . | . . . Flight . | . . . Fastest Speed 50 | 50 120 120 Average Speed 114 | 71 120 120 Slowest Speed 120 | 120 120 120 Overloaded Moves . | . . . Propulsion Burnouts . | . . . Robots Hopped . | . . . Cave-ins Triggered . | . . . Exploration Rate (%) 41 | 3 47 75 Regions Visited 2 Branch Regions 1 Pre-discovered Areas 1 | . 1 . Known Exits Taken . | . . . Unknown Exits Taken 2 | 1 1 . Scrap Searched 1 | . . 1 Spaces Dug . | . . . Terrain Destroyed 1 | . . 1 Melee . | . . . Projectile 1 | . . 1 AOE . | . . . Terrain Rammed . | . . . Walls Destroyed . | . . . Machines Disabled . | . . . Actions | -11 -10 -10 --------- Run | Yrd Mat Min Total 1048 | 113 408 527 Wait 154 | 8 70 76 Move 782 | 82 287 413 Hop . | . . . Pick Up 17 | 8 8 1 Fast Attach 4 | . 1 3 Attach 11 | 8 2 1 Detach . | . . . Swap 2 | . 1 1 Drop 8 | 1 5 2 Fire 59 | 6 34 19 Melee 8 | . . 8 Ram . | . . . Kick . | . . . Crush . | . . . Escape Stasis . | . . . Rewire . | . . . Trap 3 | . . 3 Miscellaneous . | . . . Route ------- -11/Scrapyard -10/Materials (discovered 2 exits: [*Mat] / [*Min]) -10/Mines History --------- Turn | Location | Event 7 | -11/Scrapyard | Discovered new exit (range 16) 99 | -11/Scrapyard | Entered Materials 280 | -10/Materials | Discovered new exit (range 6) 304 | -10/Materials | Discovered new exit (range 6) 310 | -10/Materials | Build established: Mutant 613 | -10/Materials | Entered Mines 636 | -10/Mines | Core integrity fell below 50% 703 | -10/Mines | Received a Mining Laser from a helpful Derelict 776 | -10/Mines | Found a hidden stash of uninstalled traps 992 | -10/Mines | Assembled infested the area 997 | -10/Mines | Assisted by a Guerilla fighting off Assembled 1120 | -10/Mines | Lost 4 parts (1p2u1w) 1149 | -10/Mines | Core integrity fell below 20% 1267 | -10/Mines | Destroyed by Y-45 Defender with Heavy Assault Rifle Last Messages --------------- 01080_ Destroyed Asb. Maul. 01080_ as-63156 system corrupted by crushing effect. 01080_ as-63156 destroyed. 01089_ Imp. Terrain Scanner destroyed. 01098_ The unstable cave ceiling collapses. 01098_ as-10498 destroyed. 01107_ as-88774 suffers critical hit (Smash). 01107_ as-88774 destroyed. 01114_ The unstable cave ceiling collapses. 01115_ K-01 Serf collects debris. 01163_ U-05 Engineer lays Concrete. 01165_ U-05 Engineer builds a Wall. 01175_ Acquired Med. Storage Unit. 01180_ Acquired 1 matter. 01185_ Acquired 9 matter. 01199_ U-05 Engineer builds a Wall. 01203_ Acquired Imp. Terrain Scanner. 01204_ U-05 Engineer builds a Wall. 01216_ T-07 Excavator is excavating. 01267_ Aluminum Leg destroyed. Map ----- +----------------------------------------------------+ | ????????????? | | ????????????? | | ########% ###########?????????????? | | ?#?????# ##???????????????????????? | | ???????# ###????????????????????????? | | ???????# #????#???#?#???????????????? | | #??????# #????#?????????????#???????? | | ?#?????# #??????????????????????????? | | ???????# #???????###????????????????? | | ???????# #??????## ######???????????? | | ???????#% #????### #????#??????? | | ##?????# ###### #### #?????#?????? | | ####### !*% = " #??# #???????#???? | | =%=%%%% !%##### #?# #???????????? | | %!#% ######???# #?# #??#????????? | | ##"# ##?????# #?# #???????????? | | ??????# #?# #??##???????? | | #? ????## ##?# #???????????? | | ### #????#??#######?# #???????????? | | ##??? ??????????##??# #??????#????# | | ##????#?#????#????????# ##????#?????? | | ##??????????????#?????# #???#????#??? | | #???????????#???????#?# #???????????? | | #????????????????#???#Y#????????#??? | | ??????#??????#???#Y######??????? | | #????????#??#???#u@ #??????#? | | #?#????????????# t###??????? | | ## ##?????????#???### ###????????? | | ##?####??????????#????####??????????? | | ##???????????????????????????????????? | | #?????????? ???#?????????????????????? | | #????????????????????????????#???????? | | #??????????????????????????????????#?? | | ?#??????????????????????????? ???????? | | ???????????????#?????????????????????? | | ???????????????????????????????#?????? | | ?????????????????????????????????????? | | ???????????????????????????????##????? | | ?????????????????????????????????????? | | ?????????????????????????????????????? | | ?????????????????????????????????????? | | ?????????????????????????????????????? | | ?????????????????????????????????????? | | ?????????????????????????????????????? | | ?????????????????????????????????????? | | | | | | | | | | | +----------------------------------------------------+ Best States ------------- Heat Dissipation 25 Energy Generation 14 Energy Capacity 160 Matter Stores 300 Matter Capacity 300 Sight Range 16 Robot Scan Range 14 Terrain Scan Range 16 Terrain Scan Density 10 Evasion (%) 55 Item Schematics ----------------- None Robot Schematics ------------------ G-34 Mercenary | -10/Materials | Hacked W-16 Scout | -10/Materials | Hacked Fabricated ------------ Nothing Alien Tech Used ----------------- None Achievements -------------- None Challenges ------------ None Game ------ Seed StructuralComponentCanceller Manual? 0 Play Time 00:19:16 Cumulative 27.9 hours Start 2024.05.15 @ 01:46:20 End 2024.05.15 @ 02:04:12 Sessions 1 Manual Loads 0 Difficulty Rogue Special Mode None Game No. 45 Rogue 45 Adventurer 0 Explorer 0 Win Type - Total 0 Types 0/0/0/0/0/0/0/0/0 Lore% 18 Gallery% 26 Achievement% 24 Wizard Run 0 Options --------- Layout 0 ASCII 0 Keyboard 0 Movement Mouse Keybinds 0 Fullscreen 2 Font 18/SmallcapsGlow Map View 38x25 Zoom Use 98% Tactical HUD 1 Map Filters NONE Filters NONE Steam 1 RUN: c4393ef4-6405-439c-90a4-d8a8ed9984e5